[Event "Open Nuevo Centro. Jornada 1"]
[Site "Chess.com"]
[Date "2020.06.19"]
[Round "1"]
[White "M�s Ripoll, Vicente"]
[Black "Crevillen Abad, Clemente"]
[Result "1-0"]
[WhiteElo "1122"]
[BlackElo "1783"]
[TimeControl "180+2"]
[EndTime "10:40:04 PDT"]
[Termination "Victoria de menut por abandono"]

1. e4 {[%clk 0:03:01.8]} 1... c5 {[%clk 0:02:59.7]} 2. Nf3 {[%clk 0:03:02.2]}
2... Nc6 {[%clk 0:02:59.7]} 3. Bc4 {[%clk 0:03:02.2]} 3... d6 {[%clk 0:02:59.8]}
4. h3 {[%clk 0:03:02.3]} 4... Nf6 {[%clk 0:02:59.7]} 5. Nc3 {[%clk 0:03:01.1]}
5... a6 {[%clk 0:02:58]} 6. a3 {[%clk 0:03:00.8]} 6... b5 {[%clk 0:02:58]} 7.
Ba2 {[%clk 0:02:58.4]} 7... Bb7 {[%clk 0:02:54]} 8. d3 {[%clk 0:02:58.2]} 8...
e6 {[%clk 0:02:48.5]} 9. Bf4 {[%clk 0:02:57.8]} 9... Be7 {[%clk 0:02:44.6]} 10.
O-O {[%clk 0:02:51.1]} 10... O-O {[%clk 0:02:45]} 11. Nh2 {[%clk 0:02:49.3]}
11... d5 {[%clk 0:02:41.4]} 12. exd5 {[%clk 0:02:33.4]} 12... exd5 {[%clk
0:02:41.4]} 13. Re1 {[%clk 0:02:24.4]} 13... Bd6 {[%clk 0:02:38.9]} 14. Bg5
{[%clk 0:02:20.2]} 14... Bxh2+ {[%clk 0:02:37.4]} 15. Kxh2 {[%clk 0:02:18.4]}
15... c4 {[%clk 0:02:24.8]} 16. dxc4 {[%clk 0:02:14.6]} 16... dxc4 {[%clk
0:02:22.7]} 17. Qf3 {[%clk 0:01:58.1]} 17... Qd6+ {[%clk 0:02:21.5]} 18. Kg1
{[%clk 0:01:43.7]} 18... Rfe8 {[%clk 0:02:17.3]} 19. Bxf6 {[%clk 0:01:41.1]}
19... Qxf6 {[%clk 0:02:17.2]} 20. Qxf6 {[%clk 0:01:41.4]} 20... gxf6 {[%clk
0:02:17.4]} 21. Ne4 {[%clk 0:01:39]} 21... Kg7 {[%clk 0:02:01.6]} 22. Nd6 {[%clk
0:01:38]} 22... Reb8 {[%clk 0:01:50.8]} 23. Re7 {[%clk 0:01:34.9]} 23... Ne5
{[%clk 0:01:50.2]} 24. Rxb7 {[%clk 0:01:25.3]} 24... Rxb7 {[%clk 0:01:48.1]} 25.
Nxb7 {[%clk 0:01:22.5]} 25... Ra7 {[%clk 0:01:39.4]} 26. Nc5 {[%clk 0:01:18.7]}
26... a5 {[%clk 0:01:37.2]} 27. Rd1 {[%clk 0:01:10.6]} 27... Rc7 {[%clk
0:01:37.2]} 28. Ne4 {[%clk 0:01:07.2]} 28... f5 {[%clk 0:01:25.2]} 29. Ng3
{[%clk 0:01:01]} 29... Kf6 {[%clk 0:01:24.2]} 30. f4 {[%clk 0:00:57.7]} 30...
Nc6 {[%clk 0:01:14.4]} 31. c3 {[%clk 0:00:57.4]} 31... Rc8 {[%clk 0:00:51.4]}
32. Bb1 {[%clk 0:00:57.2]} 32... Re8 {[%clk 0:00:46.5]} 33. Nxf5 {[%clk
0:00:55.6]} 33... Re2 {[%clk 0:00:45.5]} 34. Ng3 {[%clk 0:00:48.5]} 34... Rxb2
{[%clk 0:00:42.3]} 35. Rd6+ {[%clk 0:00:46.3]} 35... Ke7 {[%clk 0:00:42.4]} 36.
Rxc6 {[%clk 0:00:40.1]} 36... Rxb1+ {[%clk 0:00:42.6]} 37. Kh2 {[%clk
0:00:39.3]} 37... Rb3 {[%clk 0:00:43]} 38. Rb6 {[%clk 0:00:34.9]} 38... Rxc3
{[%clk 0:00:41.4]} 39. Rxb5 {[%clk 0:00:35.5]} 39... Rxa3 {[%clk 0:00:42.2]} 40.
Kg1 {[%clk 0:00:26.6]} 40... Kd6 {[%clk 0:00:42.3]} 41. Kf1 {[%clk 0:00:26.9]}
41... Kc6 {[%clk 0:00:42.8]} 42. Rb1 {[%clk 0:00:26.5]} 42... Ra2 {[%clk
0:00:40.2]} 43. Ne2 {[%clk 0:00:26.1]} 43... a4 {[%clk 0:00:36.8]} 44. Nc1
{[%clk 0:00:24.7]} 44... Rc2 {[%clk 0:00:36.5]} 45. Ke1 {[%clk 0:00:22.5]} 45...
Kc5 {[%clk 0:00:35.1]} 46. Kd1 {[%clk 0:00:21.2]} 46... Rxg2 {[%clk 0:00:35.9]}
47. Ra1 {[%clk 0:00:18.8]} 47... Rh2 {[%clk 0:00:34.4]} 48. Rxa4 {[%clk
0:00:18.8]} 48... Rxh3 {[%clk 0:00:35.1]} 49. Ne2 {[%clk 0:00:16.5]} 49... Rf3
{[%clk 0:00:31.8]} 50. Ra6 {[%clk 0:00:16.4]} 50... c3 {[%clk 0:00:31.6]} 51.
Ra7 {[%clk 0:00:15.1]} 51... c2+ {[%clk 0:00:30.9]} 52. Kxc2 {[%clk 0:00:14.9]}
52... f5 {[%clk 0:00:28.1]} 53. Rb7 {[%clk 0:00:15.1]} 53... Kd5 {[%clk
0:00:27.8]} 54. Rxh7 {[%clk 0:00:14.7]} 54... Ke4 {[%clk 0:00:27.7]} 55. Re7+
{[%clk 0:00:14.2]} 55... Kd5 {[%clk 0:00:26.5]} 56. Re5+ {[%clk 0:00:13.4]}
56... Kd6 {[%clk 0:00:27.1]} 57. Rxf5 {[%clk 0:00:14]} 57... Rf2 {[%clk
0:00:28.2]} 58. Kd2 {[%clk 0:00:12.3]} 1

[Event "Open Nuevo Centro. Jornada 1"]
[Site "Chess.com"]
[Date "2020.06.19"]
[Round "1"]
[White "Rodriguez, Mathias"]
[Black "Fern�ndez Martin, Carlos"]
[Result "1-0"]
[WhiteElo "2008"]
[BlackElo "1193"]
[TimeControl "180+2"]
[EndTime "10:41:07 PDT"]
[Termination "Victoria de niguil por abandono"]

1. e4 {[%clk 0:02:58.7]} 1... c5 {[%clk 0:02:54]} 2. Nf3 {[%clk 0:02:59.5]} 2...
d6 {[%clk 0:02:55.5]} 3. d4 {[%clk 0:02:59.5]} 3... cxd4 {[%clk 0:02:57.4]} 4.
Nxd4 {[%clk 0:03:01.4]} 4... Nf6 {[%clk 0:02:10.3]} 5. Nc3 {[%clk 0:03:01.5]}
5... e6 {[%clk 0:02:09]} 6. Be2 {[%clk 0:02:52]} 6... a6 {[%clk 0:02:05.5]} 7.
Be3 {[%clk 0:02:50.3]} 7... Bd7 {[%clk 0:02:04.4]} 8. O-O {[%clk 0:02:46.6]}
8... Be7 {[%clk 0:02:04.6]} 9. f4 {[%clk 0:02:42.8]} 9... O-O {[%clk 0:01:55.2]}
10. Qe1 {[%clk 0:02:43.1]} 10... Nc6 {[%clk 0:01:50.2]} 11. Rd1 {[%clk
0:02:43.1]} 11... Rc8 {[%clk 0:01:49.5]} 12. Qg3 {[%clk 0:02:41.2]} 12... Kh8
{[%clk 0:01:45.1]} 13. e5 {[%clk 0:02:37.7]} 13... dxe5 {[%clk 0:01:42.2]} 14.
fxe5 {[%clk 0:02:39.6]} 14... Nd5 {[%clk 0:01:39.6]} 15. Nxd5 {[%clk 0:02:35.2]}
15... exd5 {[%clk 0:01:40]} 16. Bf3 {[%clk 0:02:14.6]} 16... Bh4 {[%clk
0:01:38.2]} 17. Qf4 {[%clk 0:02:05.5]} 17... h6 {[%clk 0:01:02.4]} 18. Nf5
{[%clk 0:01:50.4]} 18... Bg5 {[%clk 0:00:59.2]} 19. Qg3 {[%clk 0:01:20]} 19...
Bxf5 {[%clk 0:00:56.4]} 20. Bxd5 {[%clk 0:01:16.8]} 20... Bxe3+ {[%clk
0:00:52.9]} 21. Qxe3 {[%clk 0:01:18.7]} 21... Bd7 {[%clk 0:00:24.7]} 22. Bxf7
{[%clk 0:01:11.5]} 22... Qe7 {[%clk 0:00:20.2]} 23. e6 {[%clk 0:01:00.7]} 23...
Be8 {[%clk 0:00:11.3]} 24. Bxe8 {[%clk 0:00:51.6]} 24... Rcxe8 {[%clk
0:00:12.2]} 25. Rfe1 {[%clk 0:00:49]} 25... Nd8 {[%clk 0:00:09.4]} 26. Qb3
{[%clk 0:00:40.1]} 26... Qf6 {[%clk 0:00:07.8]} 27. h3 {[%clk 0:00:22.5]} 27...
Qf2+ {[%clk 0:00:07.6]} 28. Kh1 {[%clk 0:00:22.7]} 28... Nxe6 {[%clk 0:00:08.8]}
29. Rxe6 {[%clk 0:00:22.1]} 29... Rxe6 {[%clk 0:00:09.2]} 30. Qxe6 {[%clk
0:00:24]} 30... Kh7 {[%clk 0:00:07.9]} 31. Qe4+ {[%clk 0:00:23.8]} 31... Kh8
{[%clk 0:00:09.1]} 32. Qb4 {[%clk 0:00:19.9]} 32... Re8 {[%clk 0:00:06.2]} 33.
Qg4 {[%clk 0:00:15.4]} 33... Qf6 {[%clk 0:00:06.5]} 34. c3 {[%clk 0:00:12.3]}
34... Rf8 {[%clk 0:00:07]} 35. Rd7 {[%clk 0:00:09.9]} 35... Qf1+ {[%clk
0:00:05.2]} 36. Kh2 {[%clk 0:00:10.7]} 36... Qf6 {[%clk 0:00:06.8]} 37. Qd4
{[%clk 0:00:09.2]} 37... Qxd4 {[%clk 0:00:02.9]} 38. Rxd4 {[%clk 0:00:11.1]}
38... Rb8 {[%clk 0:00:04.2]} 39. Rd7 {[%clk 0:00:10.9]} 39... Kg8 {[%clk
0:00:05.7]} 40. Kg3 {[%clk 0:00:11.7]} 40... Kf8 {[%clk 0:00:07]} 41. Kf4 {[%clk
0:00:12.3]} 41... g5+ {[%clk 0:00:08.2]} 42. Ke5 {[%clk 0:00:12.6]} 42... b5
{[%clk 0:00:08.5]} 43. Kd6 {[%clk 0:00:13.3]} 43... Rb6+ {[%clk 0:00:09]} 44.
Kc5 {[%clk 0:00:13.3]} 44... Rf6 {[%clk 0:00:09.7]} 45. Rh7 {[%clk 0:00:14]}
45... Kg8 {[%clk 0:00:09.4]} 46. Ra7 {[%clk 0:00:14.2]} 46... Rf2 {[%clk
0:00:09.8]} 47. Rxa6 {[%clk 0:00:14.4]} 47... Rxb2 {[%clk 0:00:10.7]} 48. c4
{[%clk 0:00:14.8]} 48... bxc4 {[%clk 0:00:09.7]} 49. Kxc4 {[%clk 0:00:15]} 49...
Rxg2 {[%clk 0:00:10.3]} 50. a4 {[%clk 0:00:15.4]} 50... Rg3 {[%clk 0:00:10.5]}
51. Rxh6 {[%clk 0:00:12.4]} 51... Kg7 {[%clk 0:00:11.3]} 52. Rb6 {[%clk
0:00:11.4]} 52... Rxh3 {[%clk 0:00:11.6]} 53. a5 {[%clk 0:00:13.3]} 53... Rh4+
{[%clk 0:00:12.8]} 54. Kc5 {[%clk 0:00:12.8]} 54... Rh1 {[%clk 0:00:13.4]} 55.
a6 {[%clk 0:00:12.8]} 55... Rc1+ {[%clk 0:00:14.8]} 56. Kb5 {[%clk 0:00:12.7]}
56... g4 {[%clk 0:00:16.3]} 57. a7 {[%clk 0:00:12]} 57... Ra1 {[%clk 0:00:17.1]}
58. Ra6 {[%clk 0:00:12.2]} 58... Rb1+ {[%clk 0:00:18.2]} 59. Kc6 {[%clk
0:00:11.5]} 59... Rc1+ {[%clk 0:00:18.9]} 60. Kb7 {[%clk 0:00:11]} 60... Rb1+
{[%clk 0:00:19.7]} 61. Rb6 {[%clk 0:00:11.4]} 61... Ra1 {[%clk 0:00:20.8]} 62.
a8=Q {[%clk 0:00:10.5]} 62... Rxa8 {[%clk 0:00:22.3]} 63. Kxa8 {[%clk
0:00:12.4]} 63... Kf7 {[%clk 0:00:22.6]} 64. Kb7 {[%clk 0:00:09.5]} 64... g3
{[%clk 0:00:22.8]} 65. Rb3 {[%clk 0:00:09.3]} 65... g2 {[%clk 0:00:22.5]} 66.
Rg3 {[%clk 0:00:10]} 1

[Event "Open Nuevo Centro. Jornada 1"]
[Site "Chess.com"]
[Date "2020.06.19"]
[Round "1"]
[White "Alegre Romaguera, Francesc"]
[Black "Hassomal Daswani, Birjkumar"]
[Result "1-0"]
[WhiteElo "1168"]
[BlackElo "1835"]
[TimeControl "180+2"]
[EndTime "10:42:18 PDT"]
[Termination "Victoria de Francesc_08 por tiempo"]

1. e4 {[%clk 0:02:54.6]} 1... c5 {[%clk 0:02:59.7]} 2. Nf3 {[%clk 0:02:55.3]}
2... e6 {[%clk 0:02:55.9]} 3. d4 {[%clk 0:02:55.9]} 3... cxd4 {[%clk 0:02:54.9]}
4. Nxd4 {[%clk 0:02:57.3]} 4... Bc5 {[%clk 0:02:55.1]} 5. Nc3 {[%clk 0:02:53.9]}
5... Qb6 {[%clk 0:02:54]} 6. Na4 {[%clk 0:02:32.7]} 6... Qa5+ {[%clk 0:02:50.8]}
7. c3 {[%clk 0:02:31.6]} 7... Bxd4 {[%clk 0:02:45.7]} 8. Qxd4 {[%clk 0:02:31.3]}
8... e5 {[%clk 0:02:45.1]} 9. Qb4 {[%clk 0:02:19.9]} 9... Qxb4 {[%clk
0:02:44.1]} 10. cxb4 {[%clk 0:02:21.8]} 10... d6 {[%clk 0:02:42.5]} 11. Nc3
{[%clk 0:02:14.9]} 11... Be6 {[%clk 0:02:35.6]} 12. Nb5 {[%clk 0:02:12.2]} 12...
Kd7 {[%clk 0:02:30.1]} 13. Be3 {[%clk 0:02:07]} 13... Nc6 {[%clk 0:02:26.8]} 14.
Rd1 {[%clk 0:02:04.6]} 14... Nf6 {[%clk 0:02:11]} 15. Nxd6 {[%clk 0:01:50.7]}
15... Nd4 {[%clk 0:01:57.6]} 16. Bxd4 {[%clk 0:01:43.9]} 16... Kxd6 {[%clk
0:01:52.7]} 17. Bc3+ {[%clk 0:01:36.7]} 17... Ke7 {[%clk 0:01:49.1]} 18. Bxe5
{[%clk 0:01:36.8]} 18... Rhd8 {[%clk 0:01:43]} 19. Be2 {[%clk 0:01:21.6]} 19...
Rxd1+ {[%clk 0:01:41.7]} 20. Bxd1 {[%clk 0:01:21.5]} 20... Bxa2 {[%clk 0:01:38]}
21. O-O {[%clk 0:01:06.9]} 21... Bc4 {[%clk 0:01:32.4]} 22. Re1 {[%clk
0:01:04.3]} 22... Rd8 {[%clk 0:01:31.6]} 23. b3 {[%clk 0:00:55.4]} 23... Bb5
{[%clk 0:01:25.5]} 24. h3 {[%clk 0:00:49.7]} 24... Nxe4 {[%clk 0:01:08.3]} 25.
Bxg7 {[%clk 0:00:34.8]} 25... f5 {[%clk 0:00:57.8]} 26. f3 {[%clk 0:00:29.1]}
26... Kf7 {[%clk 0:00:56.9]} 27. fxe4 {[%clk 0:00:26.5]} 27... Kxg7 {[%clk
0:00:56.4]} 28. exf5 {[%clk 0:00:27.1]} 28... Kf6 {[%clk 0:00:56.8]} 29. g4
{[%clk 0:00:22]} 29... Rd2 {[%clk 0:00:50.6]} 30. Bf3 {[%clk 0:00:21.7]} 30...
b6 {[%clk 0:00:46.4]} 31. Re6+ {[%clk 0:00:21.6]} 31... Kg5 {[%clk 0:00:46.2]}
32. Re7 {[%clk 0:00:18.4]} 32... Kf4 {[%clk 0:00:43]} 33. Bg2 {[%clk 0:00:16.4]}
33... Kg3 {[%clk 0:00:42.2]} 34. Re3+ {[%clk 0:00:16.1]} 34... Kf4 {[%clk
0:00:42.5]} 35. Rf3+ {[%clk 0:00:17.2]} 35... Kg5 {[%clk 0:00:42]} 36. f6 {[%clk
0:00:18.6]} 36... Rd8 {[%clk 0:00:38.6]} 37. f7 {[%clk 0:00:19.3]} 37... Rf8
{[%clk 0:00:38.6]} 38. Rf5+ {[%clk 0:00:20.1]} 38... Kg6 {[%clk 0:00:38.7]} 39.
Rxb5 {[%clk 0:00:21.1]} 39... Rxf7 {[%clk 0:00:37.9]} 40. Be4+ {[%clk
0:00:22.5]} 40... Kg7 {[%clk 0:00:35.6]} 41. Rh5 {[%clk 0:00:20]} 41... Rf4
{[%clk 0:00:34.8]} 42. Bxh7 {[%clk 0:00:17]} 42... Rxb4 {[%clk 0:00:34.3]} 43.
Bc2 {[%clk 0:00:15.3]} 43... Rd4 {[%clk 0:00:30.8]} 44. Rg5+ {[%clk 0:00:13.8]}
44... Kf6 {[%clk 0:00:29.8]} 45. Rf5+ {[%clk 0:00:14.4]} 45... Ke6 {[%clk
0:00:30.1]} 46. Rh5 {[%clk 0:00:14.4]} 46... Rd2 {[%clk 0:00:27.9]} 47. Rh6+
{[%clk 0:00:15.6]} 47... Ke5 {[%clk 0:00:27.6]} 48. Bf5 {[%clk 0:00:16.3]} 48...
Kf4 {[%clk 0:00:26.9]} 49. Re6 {[%clk 0:00:16.7]} 49... Rb2 {[%clk 0:00:19.7]}
50. Re4+ {[%clk 0:00:17.3]} 50... Kg3 {[%clk 0:00:19.1]} 51. Re3+ {[%clk
0:00:18.3]} 51... Kh4 {[%clk 0:00:19.4]} 52. Be6 {[%clk 0:00:18.5]} 52... a5
{[%clk 0:00:18.9]} 53. Bc4 {[%clk 0:00:18.8]} 53... Rc2 {[%clk 0:00:17.5]} 54.
Kf1 {[%clk 0:00:18.8]} 54... a4 {[%clk 0:00:17.8]} 55. Re2 {[%clk 0:00:19.5]}
55... Rc1+ {[%clk 0:00:17.5]} 56. Re1 {[%clk 0:00:19.9]} 56... Rc3 {[%clk
0:00:15.2]} 57. Rb1 {[%clk 0:00:16.8]} 57... Rxh3 {[%clk 0:00:13.7]} 58. bxa4
{[%clk 0:00:16.1]} 58... Rh1+ {[%clk 0:00:13.2]} 59. Ke2 {[%clk 0:00:08.9]}
59... Rxb1 {[%clk 0:00:11.9]} 60. Bb5 {[%clk 0:00:05.6]} 60... Kxg4 {[%clk
0:00:08.6]} 61. Bd7+ {[%clk 0:00:05.4]} 61... Kf4 {[%clk 0:00:08.2]} 62. Bb5
{[%clk 0:00:05.6]} 62... Rb4 {[%clk 0:00:08.4]} 63. Kd3 {[%clk 0:00:05.8]} 63...
Ke5 {[%clk 0:00:06.5]} 64. Kc3 {[%clk 0:00:06.8]} 64... Rh4 {[%clk 0:00:05.4]}
65. Kb3 {[%clk 0:00:07.5]} 65... Kd6 {[%clk 0:00:05.6]} 66. Kc3 {[%clk
0:00:08.3]} 66... Kc5 {[%clk 0:00:04.2]} 67. Kb3 {[%clk 0:00:09.3]} 67... Rh3+
{[%clk 0:00:02.7]} 68. Kb2 {[%clk 0:00:10.2]} 68... Kb4 {[%clk 0:00:03.7]} 69.
Ka2 {[%clk 0:00:11]} 69... Rh2+ {[%clk 0:00:03.6]} 70. Kb1 {[%clk 0:00:11.7]}
70... Kc3 {[%clk 0:00:01.7]} 71. Ka1 {[%clk 0:00:10.5]} 1

[Event "Open Nuevo Centro. Jornada 1"]
[Site "Chess.com"]
[Date "2020.06.19"]
[Round "1"]
[White "Deusa Ballesteros, Lucas "]
[Black "Garcia, Jhoel"]
[Result "1/2-1/2"]
[WhiteElo "1454"]
[BlackElo "2330"]
[TimeControl "180+2"]
[EndTime "10:42:53 PDT"]
[Termination "Tablas por repetición de movimientos"]

1. e4 {[%clk 0:03:01.5]} 1... c5 {[%clk 0:03:01.1]} 2. Nf3 {[%clk 0:03:01.8]}
2... Nc6 {[%clk 0:03:02.5]} 3. d4 {[%clk 0:03:01.9]} 3... cxd4 {[%clk
0:03:03.2]} 4. Nxd4 {[%clk 0:03:03.8]} 4... g6 {[%clk 0:03:04.2]} 5. Nc3 {[%clk
0:03:04.1]} 5... Bg7 {[%clk 0:03:05.2]} 6. Be3 {[%clk 0:03:05.1]} 6... Nf6
{[%clk 0:03:05.5]} 7. Be2 {[%clk 0:03:05.2]} 7... O-O {[%clk 0:03:05.7]} 8. O-O
{[%clk 0:03:05.8]} 8... d6 {[%clk 0:03:00.6]} 9. Rc1 {[%clk 0:03:01.6]} 9... Bd7
{[%clk 0:03:01.7]} 10. a3 {[%clk 0:03:02]} 10... Rc8 {[%clk 0:03:02.8]} 11. f3
{[%clk 0:02:59.7]} 11... Ne5 {[%clk 0:03:03.6]} 12. Bf2 {[%clk 0:02:56.4]} 12...
Nc4 {[%clk 0:03:04.1]} 13. Bxc4 {[%clk 0:02:56.7]} 13... Rxc4 {[%clk 0:03:04.2]}
14. Qe2 {[%clk 0:02:57.3]} 14... Rc8 {[%clk 0:03:00.7]} 15. Rfd1 {[%clk
0:02:53.3]} 15... Qa5 {[%clk 0:03:01.4]} 16. Qe1 {[%clk 0:02:49.6]} 16... a6
{[%clk 0:02:49]} 17. Nb3 {[%clk 0:02:45.2]} 17... Qc7 {[%clk 0:02:40.5]} 18. Nd4
{[%clk 0:02:33.6]} 18... b5 {[%clk 0:02:40.1]} 19. Qd2 {[%clk 0:02:03.3]} 19...
Qb8 {[%clk 0:02:38.7]} 20. Nde2 {[%clk 0:01:54]} 20... Rfd8 {[%clk 0:02:38.7]}
21. Qe1 {[%clk 0:01:53.3]} 21... a5 {[%clk 0:02:38.6]} 22. Bd4 {[%clk
0:01:42.2]} 22... Be6 {[%clk 0:02:29.6]} 23. Nf4 {[%clk 0:01:36.8]} 23... Bd7
{[%clk 0:02:19.6]} 24. Nfd5 {[%clk 0:01:31.4]} 24... Be6 {[%clk 0:01:55.2]} 25.
Nf4 {[%clk 0:01:27.7]} 25... b4 {[%clk 0:01:46.5]} 26. Nxe6 {[%clk 0:01:22]}
26... fxe6 {[%clk 0:01:44.9]} 27. axb4 {[%clk 0:01:16.2]} 27... axb4 {[%clk
0:01:44.9]} 28. Ne2 {[%clk 0:01:08.8]} 28... Bh6 {[%clk 0:01:43.7]} 29. f4
{[%clk 0:01:05.8]} 29... Nxe4 {[%clk 0:01:36]} 30. Qh4 {[%clk 0:01:03.9]} 30...
Bf8 {[%clk 0:01:36.1]} 31. Rd3 {[%clk 0:00:53.2]} 31... Qb5 {[%clk 0:01:27]} 32.
Rh3 {[%clk 0:00:43.5]} 32... h5 {[%clk 0:01:24]} 33. Ng3 {[%clk 0:00:37.5]}
33... Nxg3 {[%clk 0:01:20.1]} 34. Rxg3 {[%clk 0:00:35]} 34... Kf7 {[%clk
0:01:21.2]} 35. f5 {[%clk 0:00:24.8]} 35... exf5 {[%clk 0:01:05.8]} 36. Qg5
{[%clk 0:00:25.2]} 36... Ke8 {[%clk 0:00:57.1]} 37. Qxg6+ {[%clk 0:00:24.6]}
37... Kd7 {[%clk 0:00:58.5]} 38. Qxh5 {[%clk 0:00:20.8]} 38... Kc7 {[%clk
0:00:52.8]} 39. Qf3 {[%clk 0:00:18.2]} 39... e5 {[%clk 0:00:49.4]} 40. Bf2
{[%clk 0:00:18]} 40... f4 {[%clk 0:00:47]} 41. Rh3 {[%clk 0:00:17.5]} 41... Kb8
{[%clk 0:00:45]} 42. Rh7 {[%clk 0:00:17.6]} 42... Rc7 {[%clk 0:00:46]} 43. Rxc7
{[%clk 0:00:16.1]} 43... Kxc7 {[%clk 0:00:47.2]} 44. Qe4 {[%clk 0:00:14.3]}
44... Qc6 {[%clk 0:00:39.7]} 45. Qxc6+ {[%clk 0:00:14.2]} 45... Kxc6 {[%clk
0:00:40.5]} 46. Rd1 {[%clk 0:00:15.4]} 46... d5 {[%clk 0:00:40.5]} 47. Kf1
{[%clk 0:00:16.4]} 47... d4 {[%clk 0:00:41.6]} 48. Ke2 {[%clk 0:00:16.7]} 48...
Kd5 {[%clk 0:00:41.7]} 49. Bg1 {[%clk 0:00:17.9]} 49... Ke4 {[%clk 0:00:42.4]}
50. Re1 {[%clk 0:00:17.7]} 50... Kd5 {[%clk 0:00:43.1]} 51. Rd1 {[%clk
0:00:18.5]} 51... Bd6 {[%clk 0:00:44.2]} 52. c3 {[%clk 0:00:19.5]} 52... bxc3
{[%clk 0:00:44.8]} 53. bxc3 {[%clk 0:00:20.8]} 53... Rc8 {[%clk 0:00:45.1]} 54.
cxd4 {[%clk 0:00:20.1]} 54... e4 {[%clk 0:00:46.6]} 55. Kf1 {[%clk 0:00:19.5]}
55... Rc2 {[%clk 0:00:47.6]} 56. Re1 {[%clk 0:00:19.2]} 56... f3 {[%clk
0:00:48.2]} 57. gxf3 {[%clk 0:00:18.9]} 57... exf3 {[%clk 0:00:49.7]} 58. Bf2
{[%clk 0:00:20.5]} 58... Bxh2 {[%clk 0:00:50.6]} 59. Re5+ {[%clk 0:00:21]} 59...
Kc4 {[%clk 0:00:50.3]} 60. Rc5+ {[%clk 0:00:20.8]} 60... Kd3 {[%clk 0:00:51.7]}
61. Rxc2 {[%clk 0:00:21.2]} 61... Kxc2 {[%clk 0:00:53.3]} 62. d5 {[%clk
0:00:22.6]} 62... Kd3 {[%clk 0:00:54.4]} 63. Bb6 {[%clk 0:00:19.7]} 63... Ke4
{[%clk 0:00:54.3]} 64. Ba7 {[%clk 0:00:19.2]} 64... Kxd5 {[%clk 0:00:54.2]} 65.
Bf2 {[%clk 0:00:19.8]} 65... Ke4 {[%clk 0:00:55.2]} 66. Ba7 {[%clk 0:00:20.1]}
66... Bf4 {[%clk 0:00:55.8]} 67. Bb6 {[%clk 0:00:16.9]} 67... Be5 {[%clk
0:00:56.6]} 68. Ba7 {[%clk 0:00:17.1]} 68... Kf4 {[%clk 0:00:55.4]} 69. Bb6
{[%clk 0:00:16.7]} 69... Kg4 {[%clk 0:00:56.5]} 70. Ba7 {[%clk 0:00:17.2]} 70...
Bf4 {[%clk 0:00:57.2]} 71. Bb6 {[%clk 0:00:17.5]} 71... Bd6 {[%clk 0:00:57.3]}
72. Ba7 {[%clk 0:00:18.2]} 72... Kf5 {[%clk 0:00:57.9]} 73. Bb6 {[%clk 0:00:19]}
73... Ke4 {[%clk 0:00:59.8]} 74. Ba7 {[%clk 0:00:20]} 74... Ba3 {[%clk
0:00:57.4]} 75. Bf2 {[%clk 0:00:20.2]} 75... Bc1 {[%clk 0:00:54.4]} 76. Ba7
{[%clk 0:00:20.4]} 76... Kd3 {[%clk 0:00:51.3]} 77. Bb6 {[%clk 0:00:19.8]} 77...
Bd2 {[%clk 0:00:51.2]} 78. Ba7 {[%clk 0:00:19.9]} 78... Bg5 {[%clk 0:00:48.6]}
79. Bb6 {[%clk 0:00:20.4]} 79... Bf6 {[%clk 0:00:39.2]} 80. Kf2 {[%clk
0:00:19.2]} 80... Ke4 {[%clk 0:00:39.9]} 81. Kf1 {[%clk 0:00:19.6]} 81... Bc3
{[%clk 0:00:37.5]} 82. Ba7 {[%clk 0:00:19.6]} 82... Bd2 {[%clk 0:00:38.3]} 83.
Bb6 {[%clk 0:00:20.4]} 83... Bf4 {[%clk 0:00:23.2]} 84. Ba7 {[%clk 0:00:20.8]}
84... Kf5 {[%clk 0:00:23.5]} 85. Bb6 {[%clk 0:00:21.4]} 85... Kg4 {[%clk
0:00:25.4]} 86. Ba7 {[%clk 0:00:22.1]} 86... Bg5 {[%clk 0:00:26]} 87. Bb6 {[%clk
0:00:22.8]} 87... Kf4 {[%clk 0:00:26.7]} 88. Ba7 {[%clk 0:00:23.3]} 88... Ke4
{[%clk 0:00:27.8]} 89. Bb6 {[%clk 0:00:24.3]} 89... Be3 {[%clk 0:00:29.7]} 90.
Bxe3 {[%clk 0:00:24.7]} 90... Kxe3 {[%clk 0:00:30.5]} 91. Ke1 {[%clk 0:00:26]}
91... Kf4 {[%clk 0:00:31]} 92. Kf2 {[%clk 0:00:26]} 92... Kg4 {[%clk 0:00:32.9]}
93. Kf1 {[%clk 0:00:26.5]} 93... Kf4 {[%clk 0:00:33.3]} 94. Kf2 {[%clk 0:00:27]}
94... Ke4 {[%clk 0:00:34.3]} 95. Kf1 {[%clk 0:00:27.8]} 95... Ke5 {[%clk
0:00:36.2]} 96. Kf2 {[%clk 0:00:23.1]} 96... Kf4 {[%clk 0:00:37]} 97. Kf1 {[%clk
0:00:23.9]} 97... Kg3 {[%clk 0:00:37]} 98. Kg1 {[%clk 0:00:24.6]} 98... Kh3
{[%clk 0:00:37.2]} 99. Kf2 {[%clk 0:00:23.8]} 99... Kg4 {[%clk 0:00:38.3]} 100.
Kf1 {[%clk 0:00:24.7]} 100... Kg5 {[%clk 0:00:38.4]} 101. Kf2 {[%clk 0:00:23.1]}
101... Kf4 {[%clk 0:00:39.5]} 102. Kf1 {[%clk 0:00:24.1]} 102... Ke4 {[%clk
0:00:40.4]} 103. Kf2 {[%clk 0:00:24.3]} 103... Kf4 {[%clk 0:00:39.2]} 1/2-1

[Event "Open Nuevo Centro. Jornada 1"]
[Site "Chess.com"]
[Date "2020.06.19"]
[Round "2"]
[White "Deusa Ballesteros, Luis Miguel"]
[Black "Borissov, Juli�n"]
[Result "0-1"]
[WhiteElo "1517"]
[BlackElo "1843"]
[TimeControl "180+2"]
[EndTime "10:44:46 PDT"]
[Termination "Victoria de julianborisov por abandono"]

1. Nf3 {[%clk 0:03:01.5]} 1... d5 {[%clk 0:02:58.9]} 2. g3 {[%clk 0:03:02.1]}
2... c5 {[%clk 0:02:58.3]} 3. Bg2 {[%clk 0:03:02.9]} 3... Nc6 {[%clk 0:02:59.4]}
4. d3 {[%clk 0:03:03.7]} 4... Nf6 {[%clk 0:02:54.2]} 5. Nbd2 {[%clk 0:03:04.3]}
5... e5 {[%clk 0:02:54.3]} 6. O-O {[%clk 0:03:03.3]} 6... Be7 {[%clk 0:02:55.6]}
7. e4 {[%clk 0:03:03.6]} 7... O-O {[%clk 0:02:56.2]} 8. a4 {[%clk 0:03:02.4]}
8... dxe4 {[%clk 0:02:53.7]} 9. Nxe4 {[%clk 0:03:01.7]} 9... Nxe4 {[%clk
0:02:54.5]} 10. dxe4 {[%clk 0:03:03.6]} 10... Bg4 {[%clk 0:02:48]} 11. Qe2
{[%clk 0:02:53.7]} 11... Nd4 {[%clk 0:02:47.5]} 12. Qd3 {[%clk 0:02:47]} 12...
Nxf3+ {[%clk 0:02:42.9]} 0

[Event "Open Nuevo Centro. Jornada 1"]
[Site "Chess.com"]
[Date "2020.06.19"]
[Round "2"]
[White "Donate Moreno, David"]
[Black "Vorozbits Moisejevs, Daniels"]
[Result "1-0"]
[WhiteElo "1488"]
[BlackElo "919"]
[TimeControl "180+2"]
[EndTime "10:44:56 PDT"]
[Termination "Victoria de sylar48 por jaque mate"]

1. e4 {[%clk 0:03:01.9]} 1... e5 {[%clk 0:03:00.6]} 2. Nf3 {[%clk 0:03:02.2]}
2... Nc6 {[%clk 0:02:59]} 3. Bc4 {[%clk 0:03:02.7]} 3... h6 {[%clk 0:02:55.5]}
4. c3 {[%clk 0:03:01.9]} 4... Bc5 {[%clk 0:02:50.6]} 5. d4 {[%clk 0:03:00.9]}
5... exd4 {[%clk 0:02:49]} 6. cxd4 {[%clk 0:03:02.2]} 6... Bb4+ {[%clk 0:02:43]}
7. Nc3 {[%clk 0:03:03]} 7... Bxc3+ {[%clk 0:02:40.2]} 8. bxc3 {[%clk 0:03:03.5]}
8... Nf6 {[%clk 0:02:40.6]} 9. e5 {[%clk 0:03:03.6]} 9... Nh7 {[%clk 0:02:37.6]}
10. Bb3 {[%clk 0:02:56.8]} 10... O-O {[%clk 0:02:37]} 11. Bc2 {[%clk 0:02:57.1]}
11... Qe7 {[%clk 0:02:23.2]} 12. Qd3 {[%clk 0:02:57.1]} 12... d6 {[%clk
0:02:21.5]} 13. Qxh7# {[%clk 0:02:56.5]} 1